[Event "8th Montevideo Open 2025"]
[Site "Montevideo"]
[Date "2025.02.02"]
[Round "3.19"]
[White "Izquierdo, Sebastian"]
[Black "Tacoronte, Daniel"]
[Result "1/2-1/2"]
[Annotator "NA RC"]
[ECO "D73"]
[WhiteElo "1970"]
[BlackElo "1813"]
[PlyCount "57"]
[EventDate "2025.02.01"]
[EventType "swiss"]
[EventCountry "URU"]
[SourceTitle "playchess.com"]
[Source "ChessBase"]
[SourceQuality "1"]
[TimeControl "5400+30"]

1. d4 {[%emt 0:12:45]} Nf6 {[%emt 0:00:04]} 2. Nf3 {[%emt 0:01:09]} g6 {[%emt 0:00:03]} 3. g3 {[%emt 0:00:13]} Bg7 {[%emt 0:00:07]} 4. Bg2 {[%emt 0:00:09]} d5 {[%emt 0:01:05]} 5. c4 {[%emt 0:00:47]} c6 {[%emt 0:01:12]} 6. Qb3 {[%emt 0:03:06]} Qb6 {[%emt 0:00:30]} 7. c5 {[%emt 0:01:52]} Qxb3 {[%emt 0:00:04]} 8. axb3 {[%emt 0:00:06]} O-O {[%emt 0:01:49]} 9. Bf4 {[%emt 0:02:44]} Na6 {[%emt 0:01:53]} 10. Be5 {[%emt 0:05:27]} Bf5 {[%emt 0:01:27]} 11. O-O {[%emt 0:00:39]} Bxb1 {[%emt 0:04:14]} 12. Rfxb1 {[%emt 0:00:37]} Nd7 {[%emt 0:05:17]} 13. Bxg7 {[%emt 0:10:58]} Kxg7 {[%emt 0:01:56]} 14. Ra4 {[%emt 0:00:50]} Nc7 {[%emt 0:01:20]} 15. e3 {[%emt 0:00:50]} Nb5 {[%emt 0:03:21]} 16. Bf1 {[%emt 0:01:18]} Nc7 {[%emt 0:02:08]} 17. Rba1 {[%emt 0:00:39]} a6 {[%emt 0:00:30]} 18. b4 {[%emt 0:00:23]} Rad8 {[%emt 0:14:43]} 19. Nd2 {[%emt 0:02:42]} e5 {[%emt 0:02:57]} 20. Nb3 {[%emt 0:00:39]} exd4 {[%emt 0:04:34]} 21. exd4 {[%emt 0:03:08]} Rfe8 {[%emt 0:02:35]} 22. Bd3 {[%emt 0:04:57]} Nf6 {[%emt 0:03:09]} 23. Rd1 {[%emt 0:00:45]} Rd7 {[%emt 0:06:37]} 24. Raa1 {[%emt 0:01:53]} Rde7 {[%emt 0:00:39]} 25. Na5 {[%emt 0:00:49]} Ne6 {[%emt 0:00:33]} 26. Bf1 {[%emt 0:25:33]} Nd8 {[%emt 0:00:49]} 27. Bd3 {[%emt 0:00:55]} Ne4 {[%emt 0:01:15]} 28. h4 {[%emt 0:02:02]} f5 {[%emt 0:00:26]} 29. Kg2 {[%emt 0:00:38]} 1/2-1/2

[Event "8th Montevideo Open 2025"]
[Site "Montevideo"]
[Date "2025.02.02"]
[Round "3.20"]
[White "Larrea, Daniela"]
[Black "Martello, Benjamin"]
[Result "0-1"]
[Annotator "TA"]
[ECO "B12"]
[WhiteElo "1819"]
[BlackElo "1968"]
[PlyCount "118"]
[EventDate "2025.02.01"]
[EventType "swiss"]
[EventCountry "URU"]
[SourceTitle "playchess.com"]
[Source "ChessBase"]
[SourceQuality "1"]
[TimeControl "5400+30"]

{[%evp 11,118,16,23,27,73,-6,3,-16,-3,-12,-2,-14,-9,-14,-16,-10,0,-28,0,-4,0,-14,0,0,0,-8,1,0,0,-6,2,0,18,22,76,70,69,31,61,-24,83,70,81,122,290,272,255,47,78,73,272,238,216,0,0,0,0,0,0,0,0,0,0,0,0,0,0,0,0,0,0,0,44,168,159,81,247,240,570,0,0,-266,-265,-267,-264,-239,-258,-272,-261,-257,-210,-287,-269,-261,0,-254,-142,-270,-175,-177,-178,-232,-29,-350,-300,-29990,-29991,-29993,-29994]} 1. e4 {[%emt 0:05:29]} c6 {[%emt 0:00:43]} 2. d4 {[%emt 0:00:19]} d5 {[%emt 0:00:03]} 3. e5 {[%emt 0:00:17]} Bf5 {[%emt 0:00:05]} 4. c4 {[%emt 0:00:20]} dxc4 5. Bxc4 {[%emt 0:00:12]} e6 {[%emt 0:01:48]} 6. Nc3 {[%emt 0:00:20]} Ne7 {[%emt 0:00:43][%cal Oc6c5]} 7. Nge2 {[%emt 0:00:12] B12: Caro-Kann: Advance Variation.} Nd5 {[%emt 0:00:52]} (7... Nd7 $11) 8. Nxd5 {[%emt 0:03:00]} (8. O-O $16) 8... cxd5 $146 {[%emt 0:00:41]} (8... exd5 9. Bd3 Bxd3 10. Qxd3 Be7 11. O-O O-O 12. Be3 Nd7 13. Rac1 f6 14. f4 fxe5 15. fxe5 Bg5 16. Rxf8+ Nxf8 17. Rf1 Ne6 18. Nf4 Nxf4 19. Bxf4 Bxf4 20. Rxf4 {½-½ Grewenig,J-Weidinger,D Saarland-ch A 2008 (6)}) 9. Bb5+ {[%emt 0:02:19] The position is equal.} Nc6 {[%emt 0:00:11]} 10. O-O {[%emt 0:00:22]} Be7 {[%emt 0:00:30]} 11. Bd3 {[%emt 0:03:59]} Bxd3 {[%emt 0:01:43]} 12. Qxd3 {[%emt 0:00:08]} O-O {[%emt 0:01:42]} 13. Qg3 {[%emt 0:14:49]} Kh8 {[%emt 0:02:28]} 14. f4 {[%emt 0:13:15]} f5 {[%emt 0:02:07]} 15. Bd2 {[%emt 0:06:28]} b5 {[%emt 0:06:48]} 16. a3 {[%emt 0:04:01]} Qb6 {[%emt 0:02:27]} 17. Qd3 {[%emt 0:01:51]} Rfc8 {[%emt 0:08:14]} 18. Rfc1 {[%emt 0:03:14]} Rc7 {[%emt 0:09:10]} 19. Kf1 {[%emt 0:01:56][%cal Bg1f1,Bf1g2,Bg2g3,Bg3g4,Bg4h3][%mdl 32]} Rac8 {[%emt 0:01:17]} 20. g3 {[%emt 0:04:07][%cal Bg2g3,Bg3g4][%mdl 32]} h6 {[%emt 0:04:57]} 21. Kg2 {[%emt 0:01:53]} Kg8 {[%emt 0:06:08]} 22. h3 {[%emt 0:01:11]} Kf7 {[%emt 0:00:49]} (22... Kh7 $11) 23. g4 $16 {[%emt 0:07:50]} g6 {[%emt 0:00:32]} 24. Kg3 {[%emt 0:00:40]} a6 {[%emt 0:03:50]} 25. h4 {[%emt 0:04:29]} ({White should try} 25. gxf5 $14 exf5 26. Rg1) 25... fxg4 {[%emt 0:08:05]} (25... h5 $11 {keeps the balance.}) 26. Kxg4 {[%emt 0:00:13]} (26. h5 gxh5 27. f5 h4+ 28. Kxg4 Bg5 29. Bxg5 hxg5 30. Rf1) 26... h5+ {[%emt 0:00:17] Reckless King} 27. Kh3 {[%emt 0:00:43]} Bd8 $2 {[%emt 0:02:51]} (27... Rg8 $16) 28. Rg1 $18 {[%emt 0:02:59]} Ne7 {[%emt 0:00:08] [#]} 29. Rxg6 $2 {[%emt 0:10:29]} Nxg6 $14 {[%emt 0:01:28]} 30. Rg1 {[%emt 0:00:03]} Ne7 {[%emt 0:01:06]} (30... Nxh4 31. Qh7+ Kf8 32. Rg8#) (30... Nf8 $16) 31. Qh7+ $18 {[%emt 0:02:08]} Ke8 {[%emt 0:02:07]} 32. Bb4 $2 {[%emt 0:03:26]} ({White has to play} 32. f5 $1 $18 {[%cal Od2a5] and Ba5! should not be overlooked} exf5 33. Ba5) 32... Kd7 $11 {[%emt 0:08:31][%cal Be8d7,Bd7c6,Bc6b7][%mdl 32]} 33. Rg7 {[%emt 0:01:58][%cal Rb4e7]} Kc6 $1 {[%emt 0:01:42]} 34. Bxe7 {[%emt 0:00:27]} (34. Bc5 {with more complications.} Qa5 35. Bb4 Qa4 36. Qd3) 34... Bxe7 {[%emt 0:00:19]} 35. Rxe7 {[%emt 0:00:03]} Kb7 {[%emt 0:00:16]} 36. Rxc7+ {[%emt 0:01:28]} Qxc7 {[%emt 0:02:14]} 37. Qxh5 {[%emt 0:00:30][%mdl 4096] Endgame KQR-KQN} Qc2 {[%emt 0:00:26] Prevents f5} 38. Ng3 $1 {[%emt 0:01:30]} Rc7 {[%emt 0:00:29] Repels Qf7} 39. f5 {[%emt 0:00:15]} exf5 {[%emt 0:00:26]} 40. Nxf5 {[%emt 0:00:27]} Qd3+ {[%emt 0:01:00]} 41. Kg4 {[%emt 0:00:44]} Qe2+ {[%emt 0:01:51]} 42. Kg5 {[%emt 0:00:11]} Qxb2 {[%emt 0:02:35]} 43. Qf3 {[%emt 0:00:52]} (43. Qe8 $142 $1) 43... Qc1+ $2 {[%emt 0:01:54]} (43... Rc6 $16 {was worth a try.}) 44. Kf6 $18 {[%emt 0:00:25]} Rc6+ $2 {[%emt 0:01:24]} (44... Qc6+ 45. e6 Kb6) 45. Nd6+ $2 {[%emt 0:00:29]} (45. e6 $18) 45... Kb6 $11 {[%emt 0:00:03]} 46. Qxd5 $2 {[%emt 0:00:24][%mdl 8192]} (46. Ke6 $11 {and White is okay.}) 46... Qh6+ $19 {[%emt 0:00:22]} 47. Kf5 {[%emt 0:00:15]} Qh5+ {[%emt 0:01:33]} ({Much less strong is} 47... Qxh4 48. Qg8 $17) 48. Kf4 {[%emt 0:00:23]} Qxh4+ {[%emt 0:00:15]} 49. Kf5 {[%emt 0:00:13]} Qh5+ {[%emt 0:00:31]} 50. Kf4 {[%emt 0:00:37]} Rc2 {[%emt 0:01:54]} 51. Ne4 {[%emt 0:00:41] Dodges Rf2+} Qh4+ {[%emt 0:01:28]} 52. Kf5 {[%emt 0:00:24]} Qh5+ {[%emt 0:02:16]} 53. Kf4 $1 {[%emt 0:00:19] [#]} Qh6+ {[%emt 0:02:39]} (53... Qh2+ $1 $19 54. Kf5 Qh3+ 55. Kg6 (55. Kf6 $2 Qf3+ 56. Ke6 Rc7 $19) 55... Qg2+ (55... Qxa3 56. Qd8+ Ka7 57. e6 $11) 56. Kf7 Rc7+ 57. Kf6 Rc8 58. Qe6+ Rc6) 54. Kf3 {[%emt 0:00:28]} (54. Ng5 $17) 54... Qf8+ {[%emt 0:01:03]} 55. Nf6 {[%emt 0:00:53]} Qxa3+ {[%emt 0:00:28]} 56. Kg4 {[%emt 0:00:23] [#]} Qe7 {[%emt 0:00:52] Inhibits Qd8+.} (56... Ka5 $1 $19 {Strongly threatening ...Rf2.} 57. Kf5 Qh3+ 58. Kg6 Qg2+ 59. Qxg2 Rxg2+ 60. Kf7 b4) 57. Nd7+ $2 {[%emt 0:01:19][%mdl 8192]} (57. Qb3 $1 $11 Rg2+ 58. Kf5 Rf2+ 59. Kg6) 57... Kc7 {[%emt 0:01:46]} 58. Nc5 {[%emt 0:00:26]} (58. Nf6 $19 Rf2 59. Kh5) 58... Qg7+ {[%emt 0:00:44]} 59. Kf4 {[%emt 0:00:37]} Rf2+ {[%emt 0:00:17] Weighted Error Value: White=0.58/Black=0.53  Loses game:     	White=2     	Black=3      Missed win:     	White=3     	Black=1      Mistake:       	White=5     	Black=5      Inaccurate:     	White=3     	Black=4      OK:         	White=15    	Black=13     Best:        	White=9     	Black=6      Strong:       	White=2     	Black=1} 0-1

[Event "8th Montevideo Open 2025"]
[Site "Montevideo"]
[Date "2025.02.02"]
[Round "3.21"]
[White "Guillen Ramirez, Jose Antonio"]
[Black "Pascualvaca, Federico"]
[Result "1/2-1/2"]
[Annotator "TA"]
[ECO "B15"]
[WhiteElo "2114"]
[BlackElo "1794"]
[PlyCount "90"]
[EventDate "2025.02.01"]
[EventType "swiss"]
[EventCountry "URU"]
[SourceTitle "playchess.com"]
[Source "ChessBase"]
[SourceQuality "1"]
[TimeControl "5400+30"]

{[%evp 11,90,14,33,1,6,0,22,26,54,29,37,-28,45,-87,-92,-110,-113,-118,-109,-101,-114,-102,-115,-109,-95,-93,0,-39,-26,-32,0,0,9,13,10,7,9,12,6,9,19,23,26,-69,0,0,0,0,0,0,0,0,0,0,0,0,0,0,0,0,0,-20,0,0,7,0,0,0,0,0,0,0,0,0,0,0,0,0,0,0,0]} 1. e4 {[%emt 0:20:19]} c6 {[%emt 0:01:11]} 2. d4 {[%emt 0:12:46]} d5 {[%emt 0:00:31]} 3. Nc3 {[%emt 0:00:02]} dxe4 {[%emt 0:00:31]} 4. Nxe4 {[%emt 0:00:04]} Nf6 {[%emt 0:00:48]} 5. Ng3 {[%emt 0:05:23]} h5 {[%emt 0:01:29]} 6. h4 {[%emt 0:08:03]} Bg4 {[%emt 0:01:25]} 7. f3 {[%emt 0:00:33] B15: Caro-Kann: 3 Nc3: 3...g6 and 3...dxe4 4 Nxe4 Nf6 5 Nxf6+ exf6.} Bd7 {[%emt 0:02:05][%cal Oc6c5]} 8. Bc4 {[%emt 0:03:10]} Na6 $146 {[%emt 0:01:56]} (8... e6 9. Qe2 Be7 10. Bg5 a5 11. Nh3 Nd5 12. O-O Bxg5 13. Nxg5 Qe7 14. Rae1 Qf6 {1-0 Horvath,A (2481)-Buzas,B (2213) HUN-ch rapid 2018 (8)}) 9. N1e2 {[%emt 0:00:33]} Nc7 {[%emt 0:01:58]} 10. Bb3 {[%emt 0:00:41]} a5 {[%emt 0:04:07]} 11. c4 {[%emt 0:00:43]} (11. c3 $14) 11... Be6 {[%emt 0:05:10]} (11... b5 $1 $11) 12. Nf4 {[%emt 0:01:26] [#]} (12. a4 $14 {keeps the upper hand.}) 12... a4 $1 $17 {[%emt 0:01:01]} 13. d5 {[%emt 0:15:05]} (13. Bxa4 Bxc4) 13... axb3 {[%emt 0:02:36]} (13... cxd5 $6 14. Nxe6 (14. Bxa4+ Bd7 $15) 14... fxe6 15. Bxa4+ Kf7 16. cxd5 $14) 14. dxe6 {[%emt 0:00:07]} Qxd1+ {[%emt 0:00:31]} (14... bxa2 $6 15. Qxd8+ Rxd8 16. Rxa2 $11) 15. Kxd1 {[%emt 0:00:02]} Rxa2 {[%emt 0:01:03]} 16. exf7+ {[%emt 0:00:46]} Kxf7 {[%emt 0:00:35]} 17. Rb1 {[%emt 0:00:02]} g6 {[%emt 0:01:43]} 18. Nd3 {[%emt 0:03:34]} e6 {[%emt 0:03:02]} (18... Nd7 $17 {and ...Bg7 should not be overlooked} 19. Ne4 Ne6 20. Ng5+ Nxg5 21. Bxg5 Bg7) 19. Bf4 $15 {[%emt 0:00:32]} Na6 {[%emt 0:03:16]} 20. Kd2 {[%emt 0:10:53]} Nd7 {[%emt 0:17:08]} 21. Ne4 {[%emt 0:01:14]} Nac5 {[%emt 0:09:38]} 22. Ng5+ {[%emt 0:12:25]} (22. Ndxc5 {simplifies} Nxc5 23. Ng5+ Ke8 24. Be5) 22... Ke7 {[%emt 0:04:42]} 23. Nxc5 {[%emt 0:00:57]} Nxc5 {[%emt 0:00:30]} 24. Be5 {[%emt 0:00:17] Against Bg7} Rg8 {[%emt 0:00:56]} 25. Kc3 {[%emt 0:00:19]} Bg7 {[%emt 0:04:28]} (25... Ra4 {feels hotter.} 26. Rbd1 Bg7 27. Rhe1 b5) 26. Bxg7 $1 {[%emt 0:00:27]} Rxg7 {[%emt 0:00:11]} 27. Ra1 {[%emt 0:00:31]} ({White should play} 27. Rhe1 $11) 27... Kf6 {[%emt 0:02:37]} (27... Rg8 $1 $15 28. Rab1 Rd8) 28. Rxa2 $11 {[%emt 0:00:34] The position is equal.} bxa2 {[%emt 0:00:17][%mdl 4096] Endgame KRN-KRN. Black is a pawn up.} 29. b4 {[%emt 0:00:41]} Na4+ {[%emt 0:03:56]} 30. Kb3 {[%emt 0:00:02]} b5 {[%emt 0:00:43]} 31. cxb5 {[%emt 0:02:11]} cxb5 {[%emt 0:00:30]} 32. Kxa2 {[%emt 0:00:06]} Rd7 {[%emt 0:01:16]} 33. Ne4+ {[%emt 0:00:33]} Ke5 {[%emt 0:01:33]} 34. Rc1 {[%emt 0:00:22]} Rd4 {[%emt 0:01:24]} 35. Kb3 {[%emt 0:01:08]} Rd3+ {[%emt 0:00:57]} 36. Kc2 {[%emt 0:00:07]} Ra3 {[%emt 0:01:20]} 37. Re1 {[%emt 0:00:16] [#]} Ra2+ {[%emt 0:05:33]} 38. Kd3 {[%emt 0:00:18]} Rxg2 {[%emt 0:01:18]} 39. Ng5+ {[%emt 0:00:29]} Kd5 {[%emt 0:02:04]} 40. Nxe6 {[%emt 0:00:22]} Nb2+ {[%emt 0:03:11]} 41. Kc3 {[%emt 0:00:14]} Na4+ {[%emt 0:00:56]} 42. Kd3 {[%emt 0:00:04]} Nb2+ {[%emt 0:01:06]} 43. Kc3 {[%emt 0:00:03]} Na4+ {[%emt 0:00:11]} 44. Kd3 {[%emt 0:01:22]} Nb2+ {[%emt 0:00:59]} 45. Kc3 {[%emt 0:00:36] Strongly threatening Nf4+.} Na4+ {[%emt 0:00:14] Weighted Error Value: White=0.16 (very precise) /Black=0.15 (very precise)   Mistake:       	White=3     	Black=3      Inaccurate:     	---       	Black=2      OK:         	White=17    	Black=18     Best:        	White=4     	---        Strong:       	White=1     	---        Brilliant:      	---       	Black=1} 1/2-1/2

[Event "8th Montevideo Open 2025"]
[Site "Montevideo"]
[Date "2025.02.02"]
[Round "3.22"]
[White "Fernandez Rodriguez, Jose Antonio"]
[Black "Lanzilotta, Marcelo"]
[Result "0-1"]
[Annotator "TA"]
[ECO "B78"]
[WhiteElo "2140"]
[BlackElo "1958"]
[PlyCount "74"]
[EventDate "2025.02.01"]
[EventType "swiss"]
[EventCountry "URU"]
[SourceTitle "playchess.com"]
[Source "ChessBase"]
[SourceQuality "1"]
[TimeControl "5400+30"]

{[%evp 27,74,27,12,0,0,0,14,-42,0,-62,88,-198,-123,-900,-892,-847,-871,-1012,-1008,-987,-944,-888,-714,-766,-826,-795,-821,-822,-805,-975,-908,-1200,-1089,-1101,-1117,-1277,-1264,-1121,-1100,-2021,-2033,-1868,-1656,-29983,-29984,-29979,-29969,-29985,-29986]} 1. e4 {[%emt 0:12:53]} c5 {[%emt 0:08:33]} 2. Nf3 {[%emt 0:01:49]} d6 {[%emt 0:00:02]} 3. d4 {[%emt 0:00:08]} cxd4 {[%emt 0:00:02]} 4. Nxd4 {[%emt 0:00:06]} Nf6 {[%emt 0:00:01]} 5. Nc3 {[%emt 0:00:09]} g6 {[%emt 0:00:03]} 6. Be3 {[%emt 0:00:12]} Bg7 {[%emt 0:00:03]} 7. f3 {[%emt 0:00:14]} O-O {[%emt 0:00:04]} 8. Qd2 {[%emt 0:00:05]} Nc6 {[%emt 0:00:08][%cal Bb8c6,Bc6e5,Be5c4][%mdl 32]} 9. Bc4 {[%emt 0:00:39]} Bd7 {[%emt 0:00:02]} 10. O-O-O {[%emt 0:00:18]} Ne5 {[%emt 0:00:02]} 11. Bb3 {[%emt 0:00:14]} Rc8 {[%emt 0:00:01]} 12. h4 {[%emt 0:01:29]} h5 {[%emt 0:00:05]} 13. Bg5 {[%emt 0:00:54]} Nc4 {[%emt 0:00:07]} 14. Qe2 {[%emt 0:00:59] 14.Qd3 is more fashionable.} Na5 {[%emt 0:00:02]} 15. g4 {[%emt 0:02:15] B78: Sicilian Dragon: Yugoslav Attack, 9 Bc4 Bd7 10 0-0-0 Rc8.} Nxb3+ {[%emt 0:03:08]} 16. axb3 {[%emt 0:04:19] A sharp opening} hxg4 {[%emt 0:13:24] [#]} 17. h5 $1 {[%emt 0:10:39]} Qa5 $146 {[%emt 0:00:47]} (17... gxh5 18. Bxf6 exf6 (18... Bxf6 $2 19. Rxh5 Re8 20. f4 $18) 19. Rxh5 $18) (17... gxf3 18. Nxf3 Rxc3 19. bxc3 Nxh5 20. Kb2 Qa5 21. Qd2 Rc8 22. Nd4 Ng3 23. Rh4 e5 {½-½ Oliveira,M (1927)-Rego,P (2215) POR-ch prel Matosinhos 2012 (9.2)}) 18. Qe3 {[%emt 0:09:49]} Rc5 {[%emt 0:19:21] [#]} (18... Qa1+ $15 {stays ahead.} 19. Nb1 gxf3 (19... gxh5 20. Bh6 $17) (19... Nxh5 20. Bh6 $17)) 19. f4 $2 {[%emt 0:17:10][%mdl 8192] [#]} (19. Bxf6 Bxf6 20. b4 Qxb4 $19) (19. h6 $1 $16 {[%cal Rh6g7] stays on course.} Bh8 (19... Rxg5 $2 20. hxg7 Rc8 21. Nf5 $18) 20. h7+ Nxh7 21. Bxe7) 19... Rfc8 {[%emt 0:06:52] Black keeps a firm grip on the game.} ({Don't take} 19... gxh5 20. Kb1 $17) (19... Nxh5 20. Bxe7 Qa1+ 21. Kd2 Qxb2 22. Bxf8 Bxf8 (22... Kxf8 $2 23. Nde2 $19) 23. Nce2) ({Black should try} 19... Qa1+ $1 $19 20. Nb1 Nxh5 (20... gxh5 $2 21. c3 $17) 21. Bxe7 Re8 (21... Rfc8 $2 22. c3 $19) 22. Bxd6 Rd5) 20. Nde2 $2 {[%emt 0:06:34][%mdl 8192]} (20. Kb1 $17) 20... Qa1+ $19 {[%emt 0:01:07]} 21. Kd2 {[%emt 0:00:30]} Qxb2 {[%emt 0:00:04][%cal Oc5c3]} 22. Rb1 {[%emt 0:05:38] [#]} Nxe4+ $1 {[%emt 0:11:22][%mdl 512]} 23. Qxe4 {[%emt 0:02:06]} Bxc3+ {[%emt 0:02:09] This pair of bishops is nice.} 24. Ke3 {[%emt 0:04:35] [#]} Bf5 $1 {[%emt 0:09:10]} 25. Qxf5 {[%emt 0:00:46]} (25. Rxb2 Bxe4) 25... gxf5 {[%emt 0:00:41]} 26. Rxb2 {[%emt 0:00:07]} Bxb2 {[%emt 0:00:07]} 27. c4 {[%emt 0:03:17]} b5 {[%emt 0:02:42]} 28. h6 {[%emt 0:04:35]} Kh7 {[%emt 0:00:45]} 29. Kd3 {[%emt 0:00:57]} bxc4+ {[%emt 0:01:33]} 30. bxc4 {[%emt 0:00:06]} f6 {[%emt 0:00:10]} 31. Bh4 {[%emt 0:00:34]} Rxc4 {[%emt 0:00:14][%cal Oa7a5]} (31... Kxh6 32. Bxf6+ Kg6 33. Bxb2 $19) 32. Bf2 {[%emt 0:00:54]} a5 {[%emt 0:02:53]} 33. Rb1 {[%emt 0:01:09]} Rc2 {[%emt 0:00:08]} 34. Be1 {[%emt 0:01:02]} a4 {[%emt 0:00:49][%cal Oa4a3] Hoping for ...a3!.} 35. Ng3 {[%emt 0:00:43] [#]} R8c3+ $1 {[%emt 0:03:42] Black mates.} 36. Bxc3 {[%emt 0:00:52]} Rxc3+ {[%emt 0:00:02]} 37. Kd2 {[%emt 0:00:09]} Rxg3 {[%emt 0:00:20] Weighted Error Value: White=1.34/Black=0.40  Loses game:     	White=2     	---        Mistake:       	White=1     	Black=2      OK:         	White=1     	Black=1      Best:        	White=1     	Black=1} 0-1

[Event "8th Montevideo Open 2025"]
[Site "Montevideo"]
[Date "2025.02.02"]
[Round "3.23"]
[White "Lopez Betancourt, Bryan"]
[Black "Varela, Mateo"]
[Result "0-1"]
[Annotator "TA"]
[ECO "B22"]
[WhiteElo "1897"]
[BlackElo "1955"]
[PlyCount "98"]
[EventDate "2025.02.01"]
[EventType "swiss"]
[EventCountry "URU"]
[SourceTitle "playchess.com"]
[Source "ChessBase"]
[SourceQuality "1"]
[TimeControl "5400+30"]

{[%evp 20,97,0,0,0,-2,0,-4,6,-75,-72,-70,-10,-62,-59,-52,-43,-72,-72,-96,-98,-103,-114,-104,-102,-128,-137,-151,-151,-161,-165,-185,-158,-243,-256,-257,-250,-268,-250,-444,-439,-445,-435,-495,-305,-500,-500,-1924,-1840,-5202,-4794,-3216,-3233,-3016,-2971,-29982,-29983,-29983,-29984,-29984,-29985,-29985,-29986,-29986,-29987,-29988,-29989,-29990,-29991,-29992,-29993,-29993,-29994,-29995,-29996,-29996,-29997,-29998,-29999,-29999]} 1. e4 {[%emt 1:31:00]} c5 2. c3 Nf6 3. e5 {[%emt 0:01:00]} Nd5 {[%emt 1:32:00]} 4. d4 cxd4 5. cxd4 d6 6. Nf3 {[%emt 0:01:30]} Nc6 {[%emt 0:01:30]} 7. Bc4 {[%emt 0:00:30]} Nb6 {[%emt 0:00:30]} 8. Bb5 {[%emt 0:00:30]} dxe5 {[%emt 0:00:30]} 9. Nxe5 {[%emt 0:00:30]} Bd7 {[%emt 0:00:30]} 10. Nxd7 {[%emt 0:00:30]} Qxd7 {[%emt 0:00:30]} 11. Nc3 {[%emt 0:00:30]} Rd8 {[%emt 0:00:30][%cal Og7g6]} 12. Be3 {[%emt 0:00:30]} a6 {[%emt 0:00:30]} 13. Bxc6 {[%emt 0:00:30]} Qxc6 {[%emt 0:00:30] The position is equal.} 14. Qf3 {[%emt 0:00:30]} (14. O-O $11 {keeps the balance.}) 14... Qxf3 $17 {[%emt 0:00:30]} 15. gxf3 {[%emt 0:00:30]} Nd5 {[%emt 0:00:30]} ({Black should play} 15... g6 $15) 16. Nxd5 {[%emt 0:00:30]} (16. Rc1 $11) 16... Rxd5 $15 {[%emt 0:00:30]} 17. Rc1 {[%emt 0:00:30]} Kd7 {[%emt 0:00:30]} 18. Ke2 {[%emt 0:00:30]} e6 {[%emt 0:00:30] Black keeps a firm grip on the game.} 19. Rhg1 {[%emt 0:00:30]} g6 {[%emt 0:00:30]} 20. Bf4 {[%emt 0:00:30]} Bd6 {[%emt 0:00:30] Inhibits Rc7+.} (20... Rxd4 $2 {is the wrong capture.} 21. Be5 Rd5 22. Bxh8 $18) 21. Bxd6 {[%emt 0:00:30]} Kxd6 $17 {[%emt 0:00:30][%mdl 4096] Endgame. KRR-KRR} 22. Rc2 {[%emt 0:00:30]} Rxd4 {[%emt 0:00:30]} 23. Rgc1 {[%emt 0:00:30]} Rd8 {[%emt 0:00:30]} 24. Rc7 {[%emt 0:00:30]} Rd7 {[%emt 0:00:30]} 25. Rc8 {[%emt 0:00:30]} h5 {[%emt 0:00:30]} 26. Rd1 {[%emt 0:00:30]} (26. R1c4 $17 Rxc4 27. Rxc4) 26... Rxd1 $19 {[%emt 0:00:30]} 27. Kxd1 {[%emt 0:00:30] KR-KR} Rc7 {[%emt 0:00:30]} 28. Rf8 {[%emt 0:00:30]} Ke5 {[%emt 0:00:30] ...Kf4 would now be deadly.} 29. h4 $2 {[%emt 0:00:30] [#]} (29. Rd8) 29... Kf4 {[%emt 0:00:30]} 30. Ke2 {[%emt 0:00:30]} e5 {[%emt 0:00:30]} 31. a3 {[%emt 0:00:30]} Rc2+ {[%emt 0:00:30]} 32. Ke1 $2 {[%emt 0:00:30]} (32. Kd3 {was worth a try.} Rc7 (32... Rxb2 33. Rxf7#) 33. Re8) 32... f5 $1 {[%emt 0:00:30]} (32... Rxb2 33. Rxf7#) 33. Rg8 {[%emt 0:00:30]} (33. Rd8 $142) 33... Kxf3 {[%emt 0:00:30]} 34. Rxg6 {[%emt 0:00:30]} Re2+ {[%emt 0:00:30]} 35. Kd1 {[%emt 0:00:30]} Kxf2 {[%emt 0:00:30][%cal Of5f4] [#] White must now prevent ...f4!} 36. Rg5 {[%emt 0:00:30]} f4 {[%emt 0:00:30]} (36... Rxb2 37. Rxf5+ Kg3 38. Rxh5 $15) 37. Rxh5 {[%emt 0:00:30]} e4 {[%emt 0:00:30] Black mates.} 38. Rf5 {[%emt 0:00:30]} f3 {[%emt 0:00:30]} (38... Rxb2 39. Rxf4+ Ke3 40. Rf7 $17) 39. h5 {[%emt 0:00:30]} Re1+ {[%emt 0:00:30]} 40. Kc2 {[%emt 0:00:30]} Rh1 {[%emt 0:00:30]} 41. Re5 {[%emt 0:00:30]} e3 {[%emt 0:00:30]} 42. h6 {[%emt 0:00:30]} e2 {[%emt 0:00:30]} 43. h7 {[%emt 0:00:30]} e1=Q {[%emt 0:00:30]} 44. h8=Q {[%emt 0:00:30]} Qd1+ {[%emt 0:00:30]} 45. Kc3 {[%emt 0:00:30]} Rxh8 {[%emt 0:00:30]} 46. Re4 {[%emt 0:00:30]} Rc8+ {[%emt 0:00:30]} 47. Kb4 {[%emt 0:00:30]} Qd6+ {[%emt 0:00:30]} 48. Kb3 {[%emt 0:00:30]} Qd5+ {[%emt 0:00:30]} 49. Rc4 {[%emt 0:00:30]} Qxc4# {[%emt 0:00:30] Weighted Error Value: White=0.58/Black=0.08 (flawless) .  Mistake:       	White=6     	Black=1      Inaccurate:     	White=2     	Black=1      OK:         	White=5     	Black=8      Best:        	---       	Black=4      Strong:       	---       	Black=1} 0-1